Cogmind - Beta 14 @@@ ROGUE MODE // 2024.10.22 @ 22:21:36 Player: Cereal Killer Result: Destroyed by M3-CVV(R) with Subdweller Beam Cannon Performance ------------- Evolutions (0) 0 Regions Visited (2) 400 Robots Destroyed (21) 105 Value Destroyed (480) 480 Prototype IDs (0) 0 Alien Tech Used (0) 0 Bonus (0) 0 TOTAL SCORE: 985 Bonus ------- None Cogmind --------- Core Integrity 0/250 Matter 256/300 Energy 249/250 System Corruption 0% Temperature Hot (227) Movement Rolling (90) Location -10/Subcaves Parts ------- > --- POWER (1) -------- Ion Engine > --- PROPULSION (2) --- Armored Wheel Armored Wheel > --- UTILITY (2) ------ Small Storage Unit Propulsion Shielding > --- WEAPON (2) ------- Subdweller Machine Gun Grenade Launcher > --- INVENTORY (8) ---- Armored Wheel Subdweller Monowheel Structural Scanner Scrap Shield Hacking Suite Peak State ------------ > --- POWER ------------ Ion Engine > --- PROPULSION ------- Armored Wheel Armored Wheel > --- UTILITY ---------- Small Storage Unit Structural Scanner > --- WEAPON ----------- Subdweller Machine Gun Battle Cannon > --- INVENTORY -------- Ion Engine Wheel Armored Wheel Armored Wheel Propulsion Shielding Hacking Suite Grenade Launcher Grenade Launcher [Rating: 12] Favorites ----------- Power Ion Engine Engine Ion Engine Propulsion Armored Wheel Wheel Armored Wheel Utility Small Storage Unit Device Structural Scanner Storage Small Storage Unit Protection Propulsion Shielding Weapon Assault Rifle Ballistic Gun Assault Rifle Ballistic Cannon Battle Cannon Launcher Grenade Launcher Build | -11 -10 -10 ------- Run | Yrd Mat Sub Slots Evolved . | . . . Power . | . . . Propulsion . | . . . Utility . | . . . Weapon . | . . . Parts Attached 20 | 6 6 8 Power 2 | 1 . 1 Engine 2 | 1 . 1 Core . | . . . Reactor . | . . . Propulsion 5 | 2 2 1 Treads . | . . . Leg . | . . . Wheel 5 | 2 2 1 Hover . | . . . Flight . | . . . Utility 4 | 1 2 1 Device 1 | . 1 . Storage 1 | 1 . . Processor . | . . . Hackware . | . . . Protection 2 | . 1 1 Artifact . | . . . Weapon 9 | 2 2 5 Energy Gun . | . . . Energy Cannon . | . . . Ballistic Gun 5 | 2 1 2 Ballistic Cannon 1 | . . 1 Launcher 3 | . 1 2 Special Weapon . | . . . Impact Weapon . | . . . Slashing Weapon . | . . . Piercing Weapon . | . . . Special Melee Weapon . | . . . Unidentified Prototypes . | . . . Parts Lost 4 | . . 4 Power 1 | . . 1 Propulsion 1 | . . 1 Utility . | . . . Weapon 2 | . . 2 Highest Loss Streak 2 | . . 2 To Critical Strikes . | . . . Average Slot Usage (%) 96 | . 94 99 Engine 13 | . 14 13 Wheel 27 | . 28 27 Device 6 | . 1 10 Storage 14 | . 14 14 Protection 5 | . 7 3 Ballistic Gun 20 | . 27 13 Ballistic Cannon 4 | . . 7 Launcher 3 | . . 6 Peak Build Rating 12 | 6 10 12 Average Rating 9 | 3 8 11 On Entrance 5 | . 6 10 Naked Turns . | . . . Heaviest Build 18 | 14 16 18 Greatest Support 24 | 20 24 24 Greatest Overweight (x) . | . . . Average Overweight (x) . | . . . Largest Inventory Capacity 8 | 8 8 8 Average Capacity 7 | 6 8 8 Most Carried 8 | 5 8 8 Average Carried 6 | 2 5 7 Final Capacity 8 | 8 8 8 Final Carried 8 | 2 8 6 Class Distribution -------------------- 100% | Mutant Dominant Class ---------------- Mutant | -10/Materials Mutant | -10/Subcaves Resources | -11 -10 -10 ----------- Run | Yrd Mat Sub Matter Collected 913 | 217 335 361 Remotely . | . . . Salvage Created 610 | . 509 101 Parts 53 | . 43 10 Haulers Intercepted 2 | . 2 . Recyclers Shooed 1 | . 1 . Parts Field Recycled . | . . . Retrieved Matter . | . . . Parts Self-Destructed 19 | . . 19 Prevented . | . . . Kills | -11 -10 -10 ------- Run | Yrd Mat Sub Combat Hostiles Destroyed 13 | . 8 5 Guns 11 | . 8 3 Cannons 2 | . . 2 Classes Destroyed 9 | . 8 1 Worker 1 | . 1 . Tunneler 1 | . 1 . Hauler 2 | . 2 . Recycler 1 | . 1 . Operator 1 | . 1 . Watcher 2 | . 2 . Swarmer 3 | . 3 . Grunt 7 | . 5 2 Subdweller 3 | . . 3 Best Kill Streak 4 | . 4 2 Combat Bots Only 3 | . 3 2 Max Kills in Single Turn 1 | . 1 1 Gunslinging . | . . . Exploded . | . . . Melee . | . . . Uniques/NPCs Destroyed . | . . . Combat | -11 -10 -10 -------- Run | Yrd Mat Sub Hostile Shots Fired 83 | . 42 41 Missed 23 | . 12 11 Damage Taken 989 | . 347 642 Core 254 | . 53 201 Absorbed by Shields . | . . . Redirected to Shielding 22 | . 8 14 Core Remaining (%) 100 | 100 . . Volleys Fired 83 | . 44 39 Largest 2 | . 2 2 Hottest 69 | . 40 69 Shots Fired 156 | . 86 70 Gun 122 | . 84 38 Cannon 21 | . . 21 Launcher 13 | . 2 11 Special . | . . . Kinetic 143 | . 84 59 Thermal . | . . . Explosive 13 | . 2 11 Electromagnetic . | . . . Robot Hit Streak 21 | . 11 21 Robot Miss Streak 4 | . 4 2 Penetration Max . | . . . Secondary Targets 1 | . 1 . Max Gunslinging Chain 1 | . 1 . Shots Hit Robots 105 | . 55 50 Core Hits 32 | . 23 9 Critical Kills . | . . . Critical Parts Destroyed . | . . . Critical Strikes 2 | . . 2 Destroy 1 | . . 1 Blast 1 | . . 1 Melee Attacks . | . . . Impact . | . . . Slashing . | . . . Piercing . | . . . Sneak Attacks . | . . . Combat Hostiles . | . . . Follow-up Attacks . | . . . Damage Inflicted 1927 | . 759 1168 Guns 1150 | . 719 431 Cannons 311 | . . 311 Explosions 466 | . 40 426 Melee . | . . . Ramming . | . . . Kinetic 1461 | . 719 742 Thermal . | . . . Explosive 466 | . 40 426 Electromagnetic . | . . . Impact . | . . . Slashing . | . . . Piercing . | . . . Highest Corruption . | . . . Average Corruption . | . . . Corruption Purged . | . . . Corruption Blocked . | . . . Overload Shots . | . . . Overflow Damage . | . . . Projectiles . | . . . Explosions . | . . . Melee . | . . . Knockbacks 4 | . . 4 Impact . | . . . Kinetic 4 | . . 4 Secondary . | . . . Self-Inflicted Damage 13 | . 13 . Shots 1 | . 1 . Rammed . | . . . Targets Rammed . | . . . Kicked . | . . . Crushed . | . . . Highest Temperature 289 | . 11 289 Average Temperature 71 | . 4 253 Received Heat Transfer 549 | . 150 399 Siege Activations . | . . . Robots Corrupted . | . . . Combat Hostiles . | . . . Parts Fried . | . . . Impact Corruptions . | . . . Robots Melted . | . . . Combat Hostiles . | . . . Parts Melted . | . . . Heat Transferred . | . . . Parts Sabotaged . | . . . Parts Stolen . | . . . Parts Stripped . | . . . Power Chain Reactions . | . . . Alert | -11 -10 -10 ------- Run | Yrd Mat Sub Peak Influence 317 | . 317 . Initial . | . . . Average 140 | . 156 . Maximum Alert Level 1 | . 1 . Low Security (%) 70 | 100 67 . Level 1 29 | . 32 . Level 2 . | . . . Level 3 . | . . . Level 4 . | . . . Level 5 . | . . . High Security . | . . . Max Security . | . . . Squads Dispatched 1 | . 1 . Investigation . | . . . Extermination . | . . . Reinforcement 1 | . 1 . Assault . | . . . Garrison . | . . . Intercept . | . . . Searches Triggered . | . . . Construction Impeded . | . . . Haulers Reinforced . | . . . Active Scanning Responses . | . . . Cargo Convoy Interrupts . | . . . Stealth | -11 -10 -10 --------- Run | Yrd Mat Sub Distress Signals . | . . . Communications Jammed . | . . . Distress Signals . | . . . Times Spotted 23 | . 16 7 Peak Tracking Total 3 | . 3 2 Tactical Retreats 1 | . 1 . Traps | -11 -10 -10 ------- Run | Yrd Mat Sub Traps Triggered . | . . . Indirectly . | . . . Trap Hack Attempts . | . . . Triggered . | . . . Disarmed . | . . . Reprogrammed . | . . . Reused . | . . . Traps Extracted . | . . . Installed . | . . . Triggered . | . . . Machines | -11 -10 -10 ---------- Run | Yrd Mat Sub Machines Disabled . | . . . Max in Single Turn . | . . . Machines Repaired . | . . . Machines Dismantled . | . . . Machines Sabotaged . | . . . Overloaded Fab Kills . | . . . Hacking | -11 -10 -10 --------- Run | Yrd Mat Sub Machines Accessed 4 | . 3 1 Terminals 3 | . 3 . Fabricators . | . . . Repair Stations . | . . . Recycling Units . | . . . Scanalyzers . | . . . Garrison Access . | . . . Total Hacks 12 | . 9 3 Successful 10 | . 7 3 Failed 2 | . 2 . Catastrophic . | . . . Database Lockouts . | . . . Manual 9 | . 9 . Terminals 9 | . 9 . Fabricators . | . . . Repair Stations . | . . . Recycling Units . | . . . Scanalyzers . | . . . Garrison Access . | . . . Terminal Hacks 5 | . 2 3 Record 3 | . . 3 Robot Analysis 2 | . 2 . Fabricator Hacks . | . . . Repair Station Hacks . | . . . Recycling Unit Hacks . | . . . Scanalyzer . | . . . Garrison Access Hacks . | . . . Unauthorized Hacks 5 | . 5 . Terminals 5 | . 5 . Track 1 | . 1 . Assimilate 1 | . 1 . Botnet 1 | . 1 . Disrupt 1 | . 1 . Operators 1 | . 1 . Fabricators . | . . . Repair Stations . | . . . Recycling Units . | . . . Scanalyzers . | . . . Garrison Access . | . . . Data Cores Recovered . | . . . Used . | . . . Hacking Detections 3 | . 3 . Full Trace Events . | . . . Feedback Events . | . . . Feedback Blocked . | . . . Robot Schematics Acquired . | . . . Robots Built . | . . . Authchips . | . . . Time . | . . . Total Robot Build Rating . | . . . Part Schematics Acquired . | . . . Parts Built . | . . . Authchips . | . . . Time . | . . . Total Part Build Rating . | . . . Parts Repaired . | . . . Time . | . . . Parts Recycled . | . . . Recycled Matter . | . . . Retrieved Matter . | . . . Retrieved Components . | . . . Parts Scanalyzed . | . . . Part Schematics Acquired . | . . . Parts Damaged . | . . . Bothacking | -11 -10 -10 ------------ Run | Yrd Mat Sub Used RIF Installer . | . . . Robots Hacked . | . . . Non-combat . | . . . Combat . | . . . Robot Hacks Applied . | . . . Relay Couplers Released . | . . . Fabnet Peak Effective % . | . . . Robots Rewired . | . . . Allies Hacked . | . . . Hacks Repelled . | . . . Allies | -11 -10 -10 -------- Run | Yrd Mat Sub Total Allies 1 | . 1 . Largest Group 1 | . 1 . Highest-Rated Group 10 | . 10 . Highest-Rated Ally 10 | . 10 . Total Orders . | . . . Ally Attacks . | . . . Total Damage . | . . . Kills . | . . . Allies Corrupted . | . . . Allies Melted . | . . . Intel | -11 -10 -10 ------- Run | Yrd Mat Sub Robot Analysis Total 2 | . 2 . Derelict Logs Recovered . | . . . Drone Launches . | . . . Drone Recoveries . | . . . Exploration | -11 -10 -10 ------------- Run | Yrd Mat Sub Turns Passed 1149 | 58 509 582 Spaces Moved 932 | 51 381 500 Core 2 | 2 . . Treads . | . . . Legs . | . . . Wheels 930 | 49 381 500 Hover . | . . . Flight . | . . . Fastest Speed 50 | 50 80 90 Average Speed 88 | 78 87 90 Slowest Speed 90 | 80 90 90 Overloaded Moves . | . . . Propulsion Burnouts . | . . . Robots Hopped . | . . . Cave-ins Triggered . | . . . Exploration Rate (%) 36 | 4 72 33 Regions Visited 2 Branch Regions 1 Pre-discovered Areas . | . . . Known Exits Taken . | . . . Unknown Exits Taken 2 | 1 1 . Scrap Searched 11 | . . 11 Spaces Dug 6 | . . 6 Terrain Destroyed 42 | . 7 35 Melee . | . . . Projectile 1 | . . 1 AOE 41 | . 7 34 Terrain Rammed . | . . . Walls Destroyed . | . . . Machines Disabled . | . . . Actions | -11 -10 -10 --------- Run | Yrd Mat Sub Total 1101 | 68 469 564 Wait 42 | 4 28 10 Move 930 | 50 380 500 Hop . | . . . Pick Up 20 | 8 9 3 Fast Attach 1 | . . 1 Attach 11 | 6 1 4 Detach . | . . . Swap 8 | . 5 3 Drop 6 | . 2 4 Fire 83 | . 44 39 Melee . | . . . Ram . | . . . Kick . | . . . Crush . | . . . Escape Stasis . | . . . Rewire . | . . . Trap . | . . . Miscellaneous . | . . . Route ------- -11/Scrapyard -10/Materials (discovered 4 exits: [*Mat x2] / [*Min] / *Sub) -10/Subcaves History --------- Turn | Location | Event 17 | -11/Scrapyard | Discovered new exit (range 14) 59 | -11/Scrapyard | Entered Materials 307 | -10/Materials | Build established: Mutant 318 | -10/Materials | Discovered new exit (range 10) 471 | -10/Materials | Discovered new exit (range 11) 550 | -10/Materials | Discovered new exit (range 11) 558 | -10/Materials | Discovered new exit (range 8) 568 | -10/Materials | Entered Subcaves 681 | -10/Subcaves | Visited Clippyterm 684 | -10/Subcaves | Learned Research security intel 912 | -10/Subcaves | Shifting Twisted Machinery released Sub. Optics 977 | -10/Subcaves | Disturbed a concealed Subdweller 993 | -10/Subcaves | Core integrity fell below 50% 1026 | -10/Subcaves | Core integrity fell below 20% 1075 | -10/Subcaves | Shifting Twisted Machinery released Sub. Power Source 1150 | -10/Subcaves | Destroyed by M3-CVV(R) with Subdweller Beam Cannon Last Messages --------------- 01033_ Found Sub. Monowheel. 01033_ Found Scrap Shield. 01033_ Found 41 Matter. 01034_ Acquired 41 matter. 01034_ Searching scrap... 01034_ Found Sub. Machine Gun. 01034_ Found 53 Matter. 01035_ Acquired 33 matter. 01035_ Searching scrap... 01035_ Found Sub. Beam Cannon. 01035_ Found 39 Matter. 01038_ Acquired Scrap Shield. Sub. Power Source falls loose from the Twisted Machinery. 01107_ M3-CVV(R) emerges from the Twisted Machinery. 01123_ Acquired 13 matter. 01138_ Battle Cannon destroyed. 01146_ Grenade Launcher destroyed. 01146_ Critical hit (Meltdown: +300). Map ----- +----------------------------------------------------+ | ?????????????????????????????????????????????????? | | ?????????????????????????????????????????????????? | | ?????????????????????????????????????????????????? | | ????????????????????????????????????????????????? | | ?????????????????????????????????????????????????? | | ?????????????????????????????????????????????????? | | ?????????????????????????????????????????????????? | | ?????????????????????????????????????????????????? | | ?????????????????????????????????????????????????? | | ?????????????????????????????????????????????????? | | ?????????????????????????????????????????????????? | | ?????????????????????????????????????????????????? | | ?????????????????????????????????????????????????? | | ?????????????????????????????????????????????????? | | ?????????????????????????????????????????????????? | | ?????????????????????????????????????????????????? | | ????????????????????????????????????? ???????????? | | ???????????????????????????????????? ???????????? | | ???????????###??####?????????????? ??????????? | | ???###????## ### ####?????????? ???????????? | | ??? " #???# % #####????? ?????????????? | | ??? " "#????# #??? ???????????????? | | ?# ?# "#????## #?? #????????????????? | | # # "#####?# #### ## #?????????????????? | | #"""#"""## ### ##?## ##????????????????? | | # """" "# ##### @ #????????????????? | | # """" ""## #?# #???????????????? | | # #"" # "## ## ## #??????????????? | | ##### "#### " # ##### #?? #??????????????? | | !## " #?#" ### ##??# #???##??????????????? | | " """""### ## ##?# #?#??###???????????? | | " "* ""##" #?## R ## ##??????????? | | # "##""### #??### # # ???????? | | ##"###"""?# ###??? R ???????? | | #?"""?# #### ??????? | | ? ??# #?????????? | | ##" #??????????? | | #### ########### ### ###?????????????? | | #??#######??????????#######??#####???????????????? | | ?????????????????????????????????????????????????? | | ?????????????????????????????????????????????????? | | ?????????????????????????????????????????????????? | | ?????????????????????????????????????????????????? | | ?????????????????????????????????????????????????? | | ?????????????????????????????????????????????????? | | ?????????????????????????????????????????????????? | | ?????????????????????????????????????????????????? | | ?????????????????????????????????????????????????? | | ?????????????????????????????????????????????????? | | ?????????????????????????????????????????????????? | +----------------------------------------------------+ Best States ------------- Heat Dissipation 25 Energy Generation 10 Energy Capacity 250 Matter Stores 300 Matter Capacity 300 Sight Range 16 Terrain Scan Density 10 Propulsion Shielding 33 Evasion (%) 44 Item Schematics ----------------- None Robot Schematics ------------------ None Fabricated ------------ Nothing Alien Tech Used ----------------- None Achievements -------------- None Challenges ------------ None Game ------ Seed PiercingSuperquantumFlamer Manual? 0 Play Time 00:14:49 Cumulative 253.4 hours Start 2024.10.22 @ 22:11:26 End 2024.10.22 @ 22:21:36 Sessions 1 Manual Loads 0 Difficulty Rogue Special Mode None Game No. 201 Rogue 192 Adventurer 9 Explorer 0 Win Type - Total 1 Types 1/0/0/0/0/0/0/0/0 Lore% 83 Gallery% 75 Achievement% 62 Wizard Run 0 Options --------- Layout 1 ASCII 0 Keyboard 0 Movement Numpad Keybinds 0 Fullscreen 1 Font 24/Smallcaps Map View 50x35 Zoom Use 0% Tactical HUD 1 Map Filters NONE Filters NONE Steam 1 RUN: a007ef30-e4a7-4bb1-9a81-3be74e718dd4